fUST/lending_fUST_20260515
["ID","MTS","AMOUNT","RATE_DAILY","PERIOD"]
[422345840,1778856648000,-500.0,0.0001178,2]
[422345842,1778856648000,-699.5,0.0001178,2]
[422345846,1778856648000,-4719.32,0.0001178,2]
[422345843,1778856648000,-831.37,0.0001178,2]
[422345845,1778856648000,-500.0,0.0001178,2]
[422345841,1778856648000,-1879.06,0.0001178,2]
[422345848,1778856648000,-3423.16,0.0001178,2]
[422345847,1778856648000,-500.0,0.0001178,2]
[422345852,1778856648000,-858.86,0.0001178,2]
[422345853,1778856648000,-651.4,0.0001178,2]
[422345857,1778856648000,-2003.41,0.0001178,2]
[422345855,1778856648000,-500.0,0.0001178,2]
[422345859,1778856648000,-3980.29,0.0001178,2]
[422345860,1778856648000,-925.65,0.0001178,2]
[422345844,1778856648000,-500.0,0.0001178,2]
[422345862,1778856648000,-609.77,0.0001178,2]
[422345892,1778856649000,-1185.11937352,0.0001178,2]
[422345884,1778856649000,-8923.181642,0.000109,2]
[422345885,1778856649000,-2119.25919702,0.000109,2]
[422345887,1778856649000,-1275.38190145,0.000109,2]
[422345886,1778856649000,-3166.47645286,0.000109,2]
[422345888,1778856649000,-9157.24602025,0.000109,2]
[422345889,1778856649000,-314.0,0.000113,2]
[422345893,1778856649000,-346.14442424,0.0001178,2]
[422345894,1778856649000,-3022.53557576,0.0001178,2]
[422345891,1778856649000,-315.0,0.000113,2]
[422345896,1778856649000,-2868.36,0.0001178,2]
[422345898,1778856649000,-7616.25571351,0.0001178,2]
[422345897,1778856649000,-750.37,0.0001178,2]
[422345895,1778856649000,-656.5,0.0001178,2]
[422345890,1778856649000,-314.0,0.000113,2]
[422346119,1778857838000,-31588.46741519,7.75e-05,2]
[422346124,1778857838000,-300.0,7.751e-05,2]
[422346122,1778857838000,-300.0,7.751e-05,2]
[422346125,1778857838000,-300.0,7.751e-05,2]
[422346118,1778857838000,-761.516547,7.634e-05,2]
[422346116,1778857838000,-14665.73601435,7.6e-05,2]
[422346123,1778857838000,-300.0,7.751e-05,2]
[422346120,1778857838000,-300.0,7.751e-05,2]
[422346117,1778857838000,-22804.17017019,7.6e-05,2]
[422346111,1778857838000,-300.0,7.522e-05,2]
[422346126,1778857838000,-300.0,7.751e-05,2]
[422346113,1778857838000,-5000.0,7.523e-05,2]
[422346109,1778857838000,-2153.74994601,7.448e-05,2]
[422346114,1778857838000,-289.0,7.597e-05,2]
[422346112,1778857838000,-755.0,7.522e-05,2]
[422346110,1778857838000,-337.63183995,7.486e-05,2]
[422346107,1778857838000,-326.516547,7.326e-05,2]
[422346108,1778857838000,-2846.25005399,7.448e-05,2]
[422346129,1778857838000,-300.0,7.751e-05,2]
[422346115,1778857838000,-3222.61821404,7.6e-05,2]
[422346138,1778857838000,-761.516547,8.559e-05,2]
[422346106,1778857838000,-435.0,7.326e-05,2]
[422346128,1778857838000,-300.0,7.751e-05,2]
[422346127,1778857838000,-300.0,7.751e-05,2]
[422346150,1778857838000,-500.0,0.00010521,2]
[422346149,1778857838000,-500.0,0.00010521,2]
[422346147,1778857838000,-500.0,0.00010521,2]
[422346148,1778857838000,-500.0,0.00010521,2]
[422346144,1778857838000,-32615.4,0.0001,2]
[422346146,1778857838000,-369.94901846,0.00010521,2]
[422346151,1778857838000,-500.0,0.00010521,2]
[422346145,1778857838000,-500.0,0.00010521,2]
[422346143,1778857838000,-864.0,9.565e-05,2]
[422346142,1778857838000,-300.0,9.564e-05,2]
[422346121,1778857838000,-300.0,7.751e-05,2]
[422346140,1778857838000,-761.516547,8.867e-05,2]
[422346139,1778857838000,-720.0,8.696e-05,2]
[422346135,1778857838000,-600.0,7.905e-05,2]
[422346132,1778857838000,-300.0,7.751e-05,2]
[422346130,1778857838000,-300.0,7.751e-05,2]
[422346136,1778857838000,-761.516547,7.942e-05,2]
[422346134,1778857838000,-300.0,7.751e-05,2]
[422346141,1778857838000,-398.40557115,9.486e-05,2]
[422346137,1778857838000,-761.516547,8.251e-05,2]
[422346131,1778857838000,-300.0,7.751e-05,2]
[422346133,1778857838000,-300.0,7.751e-05,2]
[422346201,1778857839000,-510.65,0.00010958,2]
[422346194,1778857839000,-500.0,0.00010958,2]
[422346195,1778857839000,-846.99,0.00010958,2]
[422346192,1778857839000,-641.96726058,0.00010958,2]
[422346191,1778857839000,-500.0,0.00010958,2]
[422346200,1778857839000,-500.0,0.00010958,2]
[422346186,1778857839000,-500.0,0.00010958,2]
[422346189,1778857839000,-500.0,0.00010958,2]
[422346185,1778857839000,-549.12,0.00010958,2]
[422346183,1778857839000,-500.0,0.00010958,2]
[422346193,1778857839000,-1960.59,0.00010958,2]
[422346184,1778857839000,-628.64,0.00010958,2]
[422346190,1778857839000,-500.0,0.00010958,2]
[422346199,1778857839000,-500.0,0.00010958,2]
[422346202,1778857839000,-2829.29,0.00010958,2]
[422346198,1778857839000,-500.0,0.00010958,2]
[422346196,1778857839000,-1169.2,0.00010958,2]
[422346203,1778857839000,-500.0,0.00010958,2]
[422346187,1778857839000,-655.43,0.00010958,2]
[422346209,1778857839000,-500.0,0.00010958,2]
[422346204,1778857839000,-695.41,0.00010958,2]
[422346210,1778857839000,-500.0,0.00010958,2]
[422346211,1778857839000,-1151.1,0.00010958,2]
[422346206,1778857839000,-500.0,0.00010958,2]
[422346208,1778857839000,-689.91,0.00010958,2]
[422346213,1778857839000,-654.92,0.00010958,2]
[422346212,1778857839000,-543.46985678,0.00010958,2]
[422346207,1778857839000,-1039.81,0.00010958,2]
[422346197,1778857839000,-500.0,0.00010958,2]
[422346188,1778857839000,-1149.78,0.00010958,2]
[422346180,1778857839000,-500.0,0.00010958,2]
[422346179,1778857839000,-500.0,0.00010958,2]
[422346153,1778857839000,-500.0,0.00010521,2]
[422346152,1778857839000,-500.0,0.00010521,2]
[422346161,1778857839000,-35334.29262413,0.00010565,2]
[422346163,1778857839000,-161.65638237,0.00010633,2]
[422346155,1778857839000,-583.73743852,0.00010521,2]
[422346160,1778857839000,-1000.0,0.00010522,2]
[422346158,1778857839000,-500.0,0.00010521,2]
[422346156,1778857839000,-500.0,0.00010521,2]
[422346157,1778857839000,-500.0,0.00010521,2]
[422346159,1778857839000,-500.0,0.00010521,2]
[422346162,1778857839000,-4135.79903966,0.00010565,2]
[422346164,1778857839000,-160.0,0.00010634,2]
[422346165,1778857839000,-500.0,0.00010658,2]
[422346181,1778857839000,-500.0,0.00010958,2]
[422346166,1778857839000,-160.0,0.00010735,2]
[422346175,1778857839000,-500.0,0.00010958,2]
[422346170,1778857839000,-500.0,0.00010958,2]
[422346172,1778857839000,-308.67843122,0.00010958,2]
[422346173,1778857839000,-500.0,0.00010958,2]
[422346168,1778857839000,-500.0,0.00010958,2]
[422346167,1778857839000,-180.506,0.00010858,2]
[422346174,1778857839000,-535.1,0.00010958,2]
[422346169,1778857839000,-500.0,0.00010958,2]
[422346176,1778857839000,-500.0,0.00010958,2]
[422346178,1778857839000,-500.0,0.00010958,2]
[422346205,1778857839000,-500.0,0.00010958,2]
[422346182,1778857839000,-993.86,0.00010958,2]
[422346177,1778857839000,-793.29,0.00010958,2]
[422346171,1778857839000,-475.56669683,0.00010958,2]
[422346215,1778857839000,-500.0,0.00010958,2]
[422346154,1778857839000,-500.0,0.00010521,2]
[422346218,1778857839000,-850.73,0.00010958,2]
[422346252,1778857839000,-500.0,0.00010958,2]
[422346246,1778857839000,-1367.38,0.00010958,2]
[422346250,1778857839000,-500.0,0.00010958,2]
[422346248,1778857839000,-500.0,0.00010958,2]
[422346254,1778857839000,-736.29,0.00010958,2]
[422346256,1778857839000,-500.0,0.00010958,2]
[422346264,1778857839000,-605.99,0.00010958,2]
[422346260,1778857839000,-555.73,0.00010958,2]
[422346266,1778857839000,-500.0,0.00010958,2]
[422346263,1778857839000,-500.0,0.00010958,2]
[422346255,1778857839000,-608.28,0.00010958,2]
[422346267,1778857839000,-500.0,0.00010958,2]
[422346257,1778857839000,-557.76,0.00010958,2]
[422346259,1778857839000,-320.09903344,0.00010958,2]
[422346258,1778857839000,-1930.27,0.00010958,2]
[422346261,1778857839000,-500.0,0.00010958,2]
[422346265,1778857839000,-500.0,0.00010958,2]
[422346262,1778857839000,-500.0,0.00010958,2]
[422346269,1778857839000,-500.0,0.00010958,2]
[422346268,1778857839000,-3405.8,0.00010958,2]
[422346276,1778857839000,-1152.94,0.00010958,2]
[422346271,1778857839000,-519.8,0.00010958,2]
[422346270,1778857839000,-500.0,0.00010958,2]
[422346272,1778857839000,-1221.65,0.00010958,2]
[422346273,1778857839000,-500.0,0.00010958,2]
[422346274,1778857839000,-500.0,0.00010958,2]
[422346275,1778857839000,-559.86,0.00010958,2]
[422346278,1778857839000,-311.80273523,0.00010958,2]
[422346214,1778857839000,-500.0,0.00010958,2]
[422346247,1778857839000,-978.66,0.00010958,2]
[422346249,1778857839000,-500.0,0.00010958,2]
[422346277,1778857839000,-619.04,0.00010958,2]
[422346253,1778857839000,-3179.3,0.00010958,2]
[422346226,1778857839000,-2993.23,0.00010958,2]
[422346245,1778857839000,-700.08,0.00010958,2]
[422346225,1778857839000,-728.63,0.00010958,2]
[422346217,1778857839000,-1608.38,0.00010958,2]
[422346219,1778857839000,-500.0,0.00010958,2]
[422346220,1778857839000,-500.0,0.00010958,2]
[422346221,1778857839000,-762.01,0.00010958,2]
[422346223,1778857839000,-500.0,0.00010958,2]
[422346224,1778857839000,-645.42,0.00010958,2]
[422346222,1778857839000,-500.0,0.00010958,2]
[422346228,1778857839000,-660.96,0.00010958,2]
[422346227,1778857839000,-500.0,0.00010958,2]
[422346229,1778857839000,-500.0,0.00010958,2]
[422346238,1778857839000,-1007.56,0.00010958,2]
[422346216,1778857839000,-646.08,0.00010958,2]
[422346236,1778857839000,-908.03,0.00010958,2]
[422346230,1778857839000,-789.54,0.00010958,2]
[422346251,1778857839000,-500.0,0.00010958,2]
[422346243,1778857839000,-1725.48,0.00010958,2]
[422346244,1778857839000,-547.09,0.00010958,2]
[422346241,1778857839000,-503.21,0.00010958,2]
[422346242,1778857839000,-1528.97,0.00010958,2]
[422346240,1778857839000,-500.0,0.00010958,2]
[422346234,1778857839000,-500.0,0.00010958,2]
[422346237,1778857839000,-500.0,0.00010958,2]
[422346231,1778857839000,-716.56,0.00010958,2]
[422346239,1778857839000,-826.4,0.00010958,2]
[422346235,1778857839000,-624.68,0.00010958,2]
[422346233,1778857839000,-500.0,0.00010958,2]
[422346232,1778857839000,-500.0,0.00010958,2]
[422346318,1778857840000,-755.31,0.00010958,2]
[422346325,1778857840000,-516.2,0.00010958,2]
[422346316,1778857840000,-3380.65976001,0.00010958,2]
[422346306,1778857840000,-500.0,0.00010958,2]
[422346317,1778857840000,-1495.28503999,0.00010958,2]
[422346315,1778857840000,-500.0,0.00010958,2]
[422346314,1778857840000,-4148.32,0.00010958,2]
[422346307,1778857840000,-827.18,0.00010958,2]
[422346321,1778857840000,-1052.32604,0.00010958,2]
[422346308,1778857840000,-1933.51,0.00010958,2]
[422346319,1778857840000,-1711.70496001,0.00010958,2]
[422346323,1778857840000,-500.0,0.00010958,2]
[422346338,1778857840000,-2477.29,0.00010958,2]
[422346320,1778857840000,-266.86899999,0.00010958,2]
[422346324,1778857840000,-1946.39,0.00010958,2]
[422346326,1778857840000,-778.21,0.00010958,2]
[422346337,1778857840000,-833.87,0.00010958,2]
[422346327,1778857840000,-605.33,0.00010958,2]
[422346339,1778857840000,-3185.28,0.00010958,2]
[422346328,1778857840000,-559.15,0.00010958,2]
[422346332,1778857840000,-2789.06,0.00010958,2]
[422346330,1778857840000,-500.0,0.00010958,2]
[422346329,1778857840000,-10080.45,0.00010958,2]
[422346335,1778857840000,-3516.22,0.00010958,2]
[422346312,1778857840000,-500.0,0.00010958,2]
[422346333,1778857840000,-1703.24,0.00010958,2]
[422346322,1778857840000,-614.11,0.00010958,2]
[422346313,1778857840000,-500.0,0.00010958,2]
[422346285,1778857840000,-500.0,0.00010958,2]
[422346305,1778857840000,-500.0,0.00010958,2]
[422346336,1778857840000,-904.66,0.00010958,2]
[422346279,1778857840000,-500.0,0.00010958,2]
[422346280,1778857840000,-859.19,0.00010958,2]
[422346282,1778857840000,-1535.13,0.00010958,2]
[422346292,1778857840000,-500.0,0.00010958,2]
[422346293,1778857840000,-507.5,0.00010958,2]
[422346294,1778857840000,-3800.27,0.00010958,2]
[422346284,1778857840000,-512.73,0.00010958,2]
[422346286,1778857840000,-500.0,0.00010958,2]
[422346283,1778857840000,-500.0,0.00010958,2]
[422346281,1778857840000,-733.7,0.00010958,2]
[422346291,1778857840000,-500.0,0.00010958,2]
[422346289,1778857840000,-500.0,0.00010958,2]
[422346304,1778857840000,-500.0,0.00010958,2]
[422346288,1778857840000,-500.0,0.00010958,2]
[422346287,1778857840000,-500.0,0.00010958,2]
[422346296,1778857840000,-1804.96,0.00010958,2]
[422346298,1778857840000,-500.0,0.00010958,2]
[422346297,1778857840000,-654.65,0.00010958,2]
[422346295,1778857840000,-500.0,0.00010958,2]
[422346299,1778857840000,-500.0,0.00010958,2]
[422346300,1778857840000,-1048.17,0.00010958,2]
[422346302,1778857840000,-6299.94,0.00010958,2]
[422346301,1778857840000,-535.98,0.00010958,2]
[422346303,1778857840000,-6710.32,0.00010958,2]
[422346309,1778857840000,-1718.79,0.00010958,2]
[422346310,1778857840000,-500.0,0.00010958,2]
[422346311,1778857840000,-500.0,0.00010958,2]
[422346290,1778857840000,-500.0,0.00010958,2]
[422346331,1778857840000,-587.97,0.00010958,2]
[422346356,1778857840000,-500.0,0.00010958,2]
[422346340,1778857840000,-500.0,0.00010958,2]
[422346375,1778857840000,-2218.55,0.00010958,2]
[422346371,1778857840000,-500.0,0.00010958,2]
[422346366,1778857840000,-500.0,0.00010958,2]
[422346376,1778857840000,-500.0,0.00010958,2]
[422346370,1778857840000,-631.25,0.00010958,2]
[422346379,1778857840000,-3971.16,0.00010958,2]
[422346389,1778857840000,-500.0,0.00010958,2]
[422346391,1778857840000,-500.0,0.00010958,2]
[422346390,1778857840000,-704.53,0.00010958,2]
[422346378,1778857840000,-500.0,0.00010958,2]
[422346334,1778857840000,-500.0,0.00010958,2]
[422346380,1778857840000,-841.52,0.00010958,2]
[422346385,1778857840000,-2596.58,0.00010958,2]
[422346383,1778857840000,-4100.22,0.00010958,2]
[422346381,1778857840000,-500.0,0.00010958,2]
[422346384,1778857840000,-500.0,0.00010958,2]
[422346382,1778857840000,-9362.24,0.00010958,2]
[422346386,1778857840000,-500.0,0.00010958,2]
[422346393,1778857840000,-500.0,0.00010958,2]
[422346395,1778857840000,-2977.87,0.00010958,2]
[422346392,1778857840000,-500.0,0.00010958,2]
[422346396,1778857840000,-500.0,0.00010958,2]
[422346394,1778857840000,-2891.53,0.00010958,2]
[422346401,1778857840000,-666.37,0.00010958,2]
[422346400,1778857840000,-500.0,0.00010958,2]
[422346398,1778857840000,-1085.22,0.00010958,2]
[422346399,1778857840000,-2229.31,0.00010958,2]
[422346373,1778857840000,-504.84,0.00010958,2]
[422346372,1778857840000,-500.0,0.00010958,2]
[422346387,1778857840000,-500.0,0.00010958,2]
[422346369,1778857840000,-1748.27,0.00010958,2]
[422346342,1778857840000,-2467.34,0.00010958,2]
[422346343,1778857840000,-2238.96,0.00010958,2]
[422346368,1778857840000,-500.87,0.00010958,2]
[422346345,1778857840000,-7371.25,0.00010958,2]
[422346346,1778857840000,-2984.95,0.00010958,2]
[422346347,1778857840000,-3574.0,0.00010958,2]
[422346349,1778857840000,-655.2,0.00010958,2]
[422346350,1778857840000,-650.13,0.00010958,2]
[422346348,1778857840000,-385.62877705,0.00010958,2]
[422346351,1778857840000,-9161.02,0.00010958,2]
[422346341,1778857840000,-500.0,0.00010958,2]
[422346352,1778857840000,-500.0,0.00010958,2]
[422346364,1778857840000,-1504.21,0.00010958,2]
[422346344,1778857840000,-500.0,0.00010958,2]
[422346353,1778857840000,-500.0,0.00010958,2]
[422346354,1778857840000,-500.0,0.00010958,2]
[422346374,1778857840000,-500.0,0.00010958,2]
[422346377,1778857840000,-45892.78,0.00010958,2]
[422346367,1778857840000,-500.0,0.00010958,2]
[422346361,1778857840000,-500.0,0.00010958,2]
[422346360,1778857840000,-500.0,0.00010958,2]
[422346397,1778857840000,-1260.87,0.00010958,2]
[422346358,1778857840000,-769.33,0.00010958,2]
[422346359,1778857840000,-2883.51,0.00010958,2]
[422346362,1778857840000,-2748.34,0.00010958,2]
[422346357,1778857840000,-6952.86,0.00010958,2]
[422346365,1778857840000,-1164.88,0.00010958,2]
[422346355,1778857840000,-500.0,0.00010958,2]
[422346363,1778857840000,-1436.26,0.00010958,2]
[422346404,1778857841000,-2288.73379141,0.00010958,2]
[422346403,1778857841000,-3839.93,0.00010958,2]
[422346405,1778857841000,-4605.49620859,0.00010958,2]
[422346406,1778857841000,-263.29155331,0.00010958,2]
[422346408,1778857841000,-649.29155331,0.00010959,2]
[422346407,1778857841000,-236.70844669,0.00010958,2]
[422346402,1778857841000,-1097.17,0.00010958,2]
[422346417,1778857842000,-213.81119478,0.00010958,2]
[422346418,1778857842000,-166.55134409,0.00010959,2]
[422346420,1778857842000,-624.27153337,0.0001096,2]
[422346421,1778857842000,-939.72846663,0.0001096,2]
[422346424,1778857842000,-10.64710178,0.00011094,2]
[422346419,1778857842000,-5259.8420768,0.00010959,2]
[422346422,1778857842000,-325.8907786,0.00011067,2]
[422346423,1778857842000,-443.0,0.00011094,2]
[422346427,1778857842000,-500.0,0.00011206,2]
[422346428,1778857842000,-1820.29768746,0.0001121,30]
[422346425,1778857842000,-174.35289822,0.00011094,2]
[422346426,1778857842000,-3000.0,0.000112,30]
[422346442,1778857844000,-3000.0,0.0001123,30]
[422346438,1778857844000,-500.0,0.00010958,2]
[422346437,1778857844000,-500.0,0.00010958,2]
[422346441,1778857844000,-3000.0,0.0001122,30]
[422346439,1778857844000,-850.71615605,0.0001121,30]
[422346443,1778857844000,-500.0,0.00011232,2]
[422346446,1778857844000,-500.0,0.00011232,2]
[422346444,1778857844000,-500.0,0.00011232,2]
[422346448,1778857844000,-444.59736192,0.00011232,2]
[422346449,1778857844000,-259.14535789,0.00011232,2]
[422346440,1778857844000,-328.98615649,0.0001121,30]
[422346447,1778857844000,-500.0,0.00011232,2]
[422346445,1778857844000,-535.1,0.00011232,2]
[422346475,1778857846000,-1878.9,0.00010958,2]
[422346482,1778857846000,-500.0,0.00011232,2]
[422346478,1778857846000,-500.0,0.00011232,2]
[422346477,1778857846000,-500.0,0.00011232,2]
[422346479,1778857846000,-500.0,0.00011232,2]
[422346476,1778857846000,-89.54728019,0.00011232,2]
[422346481,1778857846000,-993.86,0.00011232,2]
[422346484,1778857846000,-549.12,0.00011232,2]
[422346483,1778857846000,-628.64,0.00011232,2]
[422346485,1778857846000,-500.0,0.00011232,2]
[422346486,1778857846000,-655.43,0.00011232,2]
[422346480,1778857846000,-500.0,0.00011232,2]
[422346504,1778857847000,-689.91,0.00011232,2]
[422346514,1778857847000,-500.0,0.00011232,2]
[422346515,1778857847000,-762.01,0.00011232,2]
[422346513,1778857847000,-500.0,0.00011232,2]
[422346517,1778857847000,-500.0,0.00011232,2]
[422346516,1778857847000,-500.0,0.00011232,2]
[422346518,1778857847000,-645.42,0.00011232,2]
[422346510,1778857847000,-646.08,0.00011232,2]
[422346508,1778857847000,-500.0,0.00011232,2]
[422346511,1778857847000,-1608.38,0.00011232,2]
[422346512,1778857847000,-850.73,0.00011232,2]
[422346520,1778857847000,-2993.23,0.00011232,2]
[422346524,1778857847000,-789.54,0.00011232,2]
[422346529,1778857847000,-294.94582784,0.00011232,2]
[422346505,1778857847000,-500.0,0.00011232,2]
[422346519,1778857847000,-728.63,0.00011232,2]
[422346503,1778857847000,-1039.81,0.00011232,2]
[422346495,1778857847000,-500.0,0.00011232,2]
[422346502,1778857847000,-500.0,0.00011232,2]
[422346492,1778857847000,-846.99,0.00011232,2]
[422346493,1778857847000,-1169.2,0.00011232,2]
[422346494,1778857847000,-500.0,0.00011232,2]
[422346491,1778857847000,-500.0,0.00011232,2]
[422346489,1778857847000,-575.15722226,0.00011232,2]
[422346488,1778857847000,-500.0,0.00011232,2]
[422346487,1778857847000,-1149.78,0.00011232,2]
[422346500,1778857847000,-695.41,0.00011232,2]
[422346490,1778857847000,-500.0,0.00011232,2]
[422346497,1778857847000,-510.65,0.00011232,2]
[422346498,1778857847000,-2829.29,0.00011232,2]
[422346506,1778857847000,-1151.1,0.00011232,2]
[422346507,1778857847000,-654.92,0.00011232,2]
[422346501,1778857847000,-500.0,0.00011232,2]
[422346499,1778857847000,-500.0,0.00011232,2]
[422346496,1778857847000,-500.0,0.00011232,2]
[422346526,1778857847000,-500.0,0.00011232,2]
[422346525,1778857847000,-716.56,0.00011232,2]
[422346509,1778857847000,-500.0,0.00011232,2]
[422346527,1778857847000,-197.57011266,0.00011232,2]
[422346556,1778857847000,-108.61380774,0.00011232,2]
[422346545,1778857847000,-500.0,0.00011232,2]
[422346548,1778857847000,-3179.3,0.00011232,2]
[422346550,1778857847000,-608.28,0.00011232,2]
[422346549,1778857847000,-736.29,0.00011232,2]
[422346554,1778857847000,-555.73,0.00011232,2]
[422346547,1778857847000,-500.0,0.00011232,2]
[422346546,1778857847000,-500.0,0.00011232,2]
[422346553,1778857847000,-1930.27,0.00011232,2]
[422346551,1778857847000,-557.76,0.00011232,2]
[422346558,1778857847000,-500.0,0.00011232,2]
[422346557,1778857847000,-311.30313904,0.00011232,2]
[422346560,1778857847000,-500.0,0.00011232,2]
[422346561,1778857847000,-500.0,0.00011232,2]
[422346559,1778857847000,-605.99,0.00011232,2]
[422346531,1778857847000,-908.03,0.00011232,2]
[422346552,1778857847000,-500.0,0.00011232,2]
[422346541,1778857847000,-1367.38,0.00011232,2]
[422346555,1778857847000,-391.38619226,0.00011232,2]
[422346540,1778857847000,-700.08,0.00011232,2]
[422346530,1778857847000,-624.68,0.00011232,2]
[422346523,1778857847000,-500.0,0.00011232,2]
[422346528,1778857847000,-302.42988734,0.00011232,2]
[422346532,1778857847000,-500.0,0.00011232,2]
[422346534,1778857847000,-826.4,0.00011232,2]
[422346535,1778857847000,-500.0,0.00011232,2]
[422346536,1778857847000,-503.21,0.00011232,2]
[422346537,1778857847000,-1528.97,0.00011232,2]
[422346522,1778857847000,-660.96,0.00011232,2]
[422346544,1778857847000,-500.0,0.00011232,2]
[422346539,1778857847000,-547.09,0.00011232,2]
[422346538,1778857847000,-1725.48,0.00011232,2]
[422346533,1778857847000,-1007.56,0.00011232,2]
[422346562,1778857847000,-1434.44305322,0.00011232,2]
[422346543,1778857847000,-500.0,0.00011232,2]
[422346521,1778857847000,-500.0,0.00011232,2]
[422346542,1778857847000,-978.66,0.00011232,2]
[422346689,1778858476000,-262.108369,7.443e-05,2]
[422346688,1778858476000,-274.09447751,7.443e-05,2]
[422346756,1778859033000,-720.0,8.693e-05,2]
[422346774,1778859033000,-500.0,9.7e-05,2]
[422346770,1778859033000,-144.08806351,9.6e-05,2]
[422346765,1778859033000,-389.15317249,9.501e-05,2]
[422346768,1778859033000,-864.0,9.562e-05,2]
[422346763,1778859033000,-500.0,9e-05,2]
[422346778,1778859033000,-160.0,0.00010519,2]
[422346772,1778859033000,-355.91193649,9.6e-05,2]
[422346761,1778859033000,-303.317327,8.822e-05,2]
[422346781,1778859033000,-161.65638237,0.00010519,2]
[422346749,1778859033000,-206.41202236,7.903e-05,2]
[422346748,1778859033000,-329.79082415,7.501e-05,2]
[422346746,1778859033000,-584.57732832,7.426e-05,2]
[422346754,1778859033000,-393.58797764,7.903e-05,2]
[422346758,1778859033000,-300.0,8.728e-05,2]
[422346776,1778859033000,-1000.0,0.00010519,2]
[422346806,1778859033000,-500.0,0.00010956,2]
[422346793,1778859033000,-500.0,0.00010956,2]
[422346783,1778859033000,-160.0,0.00010519,2]
[422346812,1778859033000,-500.0,0.00010956,2]
[422346814,1778859033000,-500.0,0.00010956,2]
[422346816,1778859033000,-432.97117743,0.00010956,2]
[422346808,1778859033000,-500.0,0.00010956,2]
[422346802,1778859033000,-500.0,0.00010956,2]
[422346804,1778859033000,-600.0,0.00010956,2]
[422346810,1778859033000,-500.0,0.00010956,2]
[422346791,1778859033000,-500.0,0.00010956,2]
[422346797,1778859033000,-349.47149531,0.00010956,2]
[422346800,1778859033000,-500.0,0.00010956,2]
[422346796,1778859033000,-500.0,0.00010956,2]
[422346787,1778859033000,-500.0,0.00010956,2]
[422346785,1778859033000,-180.50621073,0.00010903,2]
[422346789,1778859033000,-500.0,0.00010956,2]
[422346908,1778859038000,-500.0,0.00010956,2]
[422346921,1778859038000,-500.0,0.00010956,2]
[422346923,1778859038000,-500.0,0.00010956,2]
[422346919,1778859038000,-500.0,0.00010956,2]
[422346917,1778859038000,-500.0,0.00010956,2]
[422346910,1778859038000,-500.0,0.00010956,2]
[422346906,1778859038000,-500.0,0.00010956,2]
[422346915,1778859038000,-500.0,0.00010956,2]
[422346894,1778859038000,-500.0,0.00010956,2]
[422346896,1778859038000,-500.0,0.00010956,2]
[422346892,1778859038000,-67.02882257,0.00010956,2]
[422346900,1778859038000,-167.65327941,0.00010956,2]
[422346902,1778859038000,-500.0,0.00010956,2]
[422346898,1778859038000,-500.0,0.00010956,2]
[422346904,1778859038000,-500.0,0.00010956,2]
[422346911,1778859038000,-500.0,0.00010956,2]
[422346939,1778859038000,-500.0,0.00010956,2]
[422346925,1778859038000,-500.0,0.00010956,2]
[422346955,1778859038000,-500.0,0.00010956,2]